[Event "Early-Titled-Tuesday-Blitz-May-07-2024"]
[Site "Chess.com"]
[Date "2024.05.07"]
[Round "2"]
[White "Ruslan_Kurayan"]
[Black "igorkovalenko"]
[Result "1-0"]
[WhiteElo "2637"]
[BlackElo "2940"]
[TimeControl "180+1"]
[EndTime "8:19:34 PDT"]
[Termination "Ruslan_Kurayan won on time"]

1. e4 {[%clk 0:02:58.4]} 1... d5 {[%clk 0:02:53.3]} 2. exd5 {[%clk 0:02:57.9]}
2... Qxd5 {[%clk 0:02:54.2]} 3. Nc3 {[%clk 0:02:56.9]} 3... Qa5 {[%clk
0:02:54.3]} 4. d4 {[%clk 0:02:56.7]} 4... Nf6 {[%clk 0:02:54.8]} 5. Bc4 {[%clk
0:02:56.6]} 5... Nc6 {[%clk 0:02:52.8]} 6. Bd2 {[%clk 0:02:22.5]} 6... Qb4
{[%clk 0:02:26.4]} 7. b3 {[%clk 0:01:33.5]} 7... Qd6 {[%clk 0:02:23.8]} 8. Nb5
{[%clk 0:01:13.3]} 8... Qd7 {[%clk 0:02:02.3]} 9. Bf4 {[%clk 0:01:13]} 9... e5
{[%clk 0:02:02.3]} 10. dxe5 {[%clk 0:01:10.5]} 10... Qe7 {[%clk 0:01:07.2]} 11.
Kf1 {[%clk 0:01:00.7]} 11... Nxe5 {[%clk 0:00:56.7]} 12. Qd4 {[%clk 0:00:42.5]}
12... a6 {[%clk 0:00:32.5]} 13. Nxc7+ {[%clk 0:00:32.5]} 13... Qxc7 {[%clk
0:00:33.4]} 14. Bxe5 {[%clk 0:00:32.8]} 14... Qc6 {[%clk 0:00:32.9]} 15. Re1
{[%clk 0:00:32.3]} 15... Be7 {[%clk 0:00:30.1]} 16. Bd6 {[%clk 0:00:29]} 16...
Be6 {[%clk 0:00:20.9]} 17. Bxe6 {[%clk 0:00:28.4]} 17... fxe6 {[%clk 0:00:21.8]}
18. Rxe6 {[%clk 0:00:26.3]} 18... O-O-O {[%clk 0:00:21.9]} 19. Rxe7 {[%clk
0:00:19.9]} 19... Rxd6 {[%clk 0:00:22.2]} 20. Qa7 {[%clk 0:00:07.7]} 20... Nd7
{[%clk 0:00:02.7]} 21. c4 {[%clk 0:00:03.5]} 1-0

[Event "Early-Titled-Tuesday-Blitz-May-07-2024"]
[Site "Chess.com"]
[Date "2024.05.07"]
[Round "2"]
[White "miaou33"]
[Black "kekic76"]
[Result "1-0"]
[WhiteElo "2543"]
[BlackElo "2347"]
[TimeControl "180+1"]
[EndTime "8:19:36 PDT"]
[Termination "miaou33 won by checkmate"]

1. e4 {[%clk 0:03:00.9]} 1... c6 {[%clk 0:02:56.4]} 2. d4 {[%clk 0:03:00.1]}
2... d5 {[%clk 0:02:56.4]} 3. exd5 {[%clk 0:03:01]} 3... cxd5 {[%clk 0:02:56.1]}
4. Bd3 {[%clk 0:03:01.4]} 4... Nc6 {[%clk 0:02:54.2]} 5. c3 {[%clk 0:03:01.5]}
5... Nf6 {[%clk 0:02:54.2]} 6. h3 {[%clk 0:03:00.6]} 6... e6 {[%clk 0:02:53.7]}
7. Nf3 {[%clk 0:02:55.6]} 7... Be7 {[%clk 0:02:53]} 8. O-O {[%clk 0:02:55.9]}
8... O-O {[%clk 0:02:49.9]} 9. Re1 {[%clk 0:02:56.6]} 9... b6 {[%clk 0:02:48.6]}
10. Nbd2 {[%clk 0:02:56.7]} 10... Bb7 {[%clk 0:02:48.8]} 11. Nf1 {[%clk
0:02:57]} 11... h6 {[%clk 0:02:44.9]} 12. Ng3 {[%clk 0:02:57.2]} 12... Rc8
{[%clk 0:02:40.5]} 13. Bf4 {[%clk 0:02:54.9]} 13... Na5 {[%clk 0:02:39.8]} 14.
Ne5 {[%clk 0:02:54.8]} 14... Nc4 {[%clk 0:02:38.4]} 15. Qe2 {[%clk 0:02:48.5]}
15... b5 {[%clk 0:02:27.4]} 16. Rad1 {[%clk 0:02:44.2]} 16... a6 {[%clk
0:02:23.1]} 17. a3 {[%clk 0:02:35.5]} 17... Nd6 {[%clk 0:01:37.4]} 18. Bb1
{[%clk 0:02:33.5]} 18... Nde4 {[%clk 0:01:37.4]} 19. Nh5 {[%clk 0:02:19.7]}
19... Bd6 {[%clk 0:00:30.3]} 20. Bh2 {[%clk 0:02:03.8]} 20... Bxe5 {[%clk
0:00:12.2]} 21. dxe5 {[%clk 0:01:40.9]} 21... Nxh5 {[%clk 0:00:11.8]} 22. Qxh5
{[%clk 0:01:41.8]} 22... Qg5 {[%clk 0:00:11.8]} 23. Qe2 {[%clk 0:01:34.8]} 23...
Rc4 {[%clk 0:00:10.5]} 24. Bd3 {[%clk 0:01:14.6]} 24... Rcc8 {[%clk 0:00:09.2]}
25. f4 {[%clk 0:01:12.9]} 25... Qe7 {[%clk 0:00:06.4]} 26. Kh1 {[%clk
0:01:02.6]} 26... Nc5 {[%clk 0:00:06.8]} 27. Bg1 {[%clk 0:00:40.9]} 27... Nxd3
{[%clk 0:00:07.1]} 28. Rxd3 {[%clk 0:00:37]} 28... Rc4 {[%clk 0:00:07.7]} 29.
Bd4 {[%clk 0:00:36.9]} 29... a5 {[%clk 0:00:06.7]} 30. Rg3 {[%clk 0:00:37.1]}
30... Qh4 {[%clk 0:00:06]} 31. Rg4 {[%clk 0:00:36.2]} 31... Qh5 {[%clk
0:00:05.9]} 32. Rxg7+ {[%clk 0:00:35.7]} 32... Kxg7 {[%clk 0:00:05.4]} 33. Qxh5
{[%clk 0:00:36.6]} 33... b4 {[%clk 0:00:05.2]} 34. f5 {[%clk 0:00:37]} 34...
exf5 {[%clk 0:00:05.4]} 35. e6+ {[%clk 0:00:37]} 35... Kh7 {[%clk 0:00:06.3]}
36. e7 {[%clk 0:00:36.6]} 36... Re8 {[%clk 0:00:06.7]} 37. Qxf7# {[%clk
0:00:36.6]} 1-0

[Event "Early-Titled-Tuesday-Blitz-May-07-2024"]
[Site "Chess.com"]
[Date "2024.05.07"]
[Round "2"]
[White "PavelShkapenko"]
[Black "YouShallNotPass001"]
[Result "1-0"]
[WhiteElo "2723"]
[BlackElo "2458"]
[TimeControl "180+1"]
[EndTime "8:19:39 PDT"]
[Termination "PavelShkapenko won by checkmate"]

1. e4 {[%clk 0:03:00.9]} 1... Nf6 {[%clk 0:03:00.9]} 2. e5 {[%clk 0:03:00.1]}
2... Ne4 {[%clk 0:03:01.2]} 3. d3 {[%clk 0:02:57.9]} 3... Nc5 {[%clk 0:03:00.8]}
4. d4 {[%clk 0:02:58.5]} 4... Ne6 {[%clk 0:03:01]} 5. d5 {[%clk 0:02:38.7]} 5...
Nc5 {[%clk 0:03:00.3]} 6. Nf3 {[%clk 0:02:21.4]} 6... e6 {[%clk 0:03:00.1]} 7.
Nc3 {[%clk 0:02:20.5]} 7... d6 {[%clk 0:02:59.5]} 8. Bb5+ {[%clk 0:02:13]} 8...
c6 {[%clk 0:02:56.5]} 9. dxc6 {[%clk 0:02:13.1]} 9... bxc6 {[%clk 0:02:57.4]}
10. Be2 {[%clk 0:02:09.8]} 10... d5 {[%clk 0:02:57.3]} 11. Bg5 {[%clk
0:02:07.6]} 11... Qb6 {[%clk 0:02:53.3]} 12. O-O {[%clk 0:01:58.6]} 12... Qxb2
{[%clk 0:02:37.6]} 13. Qd2 {[%clk 0:01:58.5]} 13... Qa3 {[%clk 0:02:20.8]} 14.
Nd4 {[%clk 0:01:48.1]} 14... h6 {[%clk 0:02:16.8]} 15. Bh4 {[%clk 0:00:51]}
15... Ba6 {[%clk 0:02:12.4]} 16. f4 {[%clk 0:00:46.6]} 16... g6 {[%clk
0:02:06.3]} 17. Rf3 {[%clk 0:00:44.1]} 17... Bxe2 {[%clk 0:02:02.9]} 18. Ndxe2
{[%clk 0:00:40.9]} 18... Qa5 {[%clk 0:01:58.4]} 19. Bf6 {[%clk 0:00:36.2]} 19...
Rg8 {[%clk 0:01:57.7]} 20. Rd1 {[%clk 0:00:36.6]} 20... Qc7 {[%clk 0:01:39.2]}
21. Bh4 {[%clk 0:00:31]} 21... h5 {[%clk 0:01:34.7]} 22. Nd4 {[%clk 0:00:29.4]}
22... Nbd7 {[%clk 0:01:31]} 23. Kh1 {[%clk 0:00:29.1]} 23... Rb8 {[%clk
0:01:25.1]} 24. Rdf1 {[%clk 0:00:26.9]} 24... Be7 {[%clk 0:01:22.5]} 25. Bxe7
{[%clk 0:00:26]} 25... Kxe7 {[%clk 0:01:23.4]} 26. f5 {[%clk 0:00:22.6]} 26...
gxf5 {[%clk 0:01:15.4]} 27. Nxf5+ {[%clk 0:00:20.4]} 27... exf5 {[%clk
0:01:15.1]} 28. Rxf5 {[%clk 0:00:21.1]} 28... Nxe5 {[%clk 0:01:13]} 29. Rxe5+
{[%clk 0:00:20.6]} 29... Qxe5 {[%clk 0:01:12.4]} 30. Re1 {[%clk 0:00:20.4]}
30... Qxe1+ {[%clk 0:01:12.7]} 31. Qxe1+ {[%clk 0:00:20.2]} 31... Ne6 {[%clk
0:01:13.2]} 32. Qh4+ {[%clk 0:00:19.2]} 32... Kd7 {[%clk 0:01:12]} 33. h3 {[%clk
0:00:19.7]} 33... Rb2 {[%clk 0:01:09.1]} 34. Qf6 {[%clk 0:00:19.9]} 34... Rg7
{[%clk 0:01:08.2]} 35. Nxd5 {[%clk 0:00:16.7]} 35... Rxc2 {[%clk 0:01:08.3]} 36.
Qe7+ {[%clk 0:00:16.4]} 36... Kc8 {[%clk 0:01:08.6]} 37. Qe8+ {[%clk 0:00:16.4]}
37... Kb7 {[%clk 0:01:08.8]} 38. Qe7+ {[%clk 0:00:16.2]} 38... Ka6 {[%clk
0:01:09]} 39. Nb4+ {[%clk 0:00:16.5]} 39... Kb5 {[%clk 0:01:09.1]} 40. Nxc2
{[%clk 0:00:17.1]} 40... c5 {[%clk 0:01:07.8]} 41. Qf6 {[%clk 0:00:15.9]} 41...
Kc4 {[%clk 0:01:06.7]} 42. Ne3+ {[%clk 0:00:15.5]} 42... Kd3 {[%clk 0:01:07]}
43. Nf5 {[%clk 0:00:15.6]} 43... Rh7 {[%clk 0:01:04]} 44. Qe5 {[%clk 0:00:13.6]}
44... c4 {[%clk 0:01:03.7]} 45. Qd5+ {[%clk 0:00:13.8]} 45... Kc2 {[%clk
0:01:00.4]} 46. Qxc4+ {[%clk 0:00:13.9]} 46... Kb1 {[%clk 0:01:01.1]} 47. Qd3+
{[%clk 0:00:13.3]} 47... Kxa2 {[%clk 0:01:00.3]} 48. Qc2+ {[%clk 0:00:12.6]}
48... Ka3 {[%clk 0:00:59.5]} 49. Ne3 {[%clk 0:00:12.8]} 49... Rg7 {[%clk
0:00:58.1]} 50. Qb1 {[%clk 0:00:12.3]} 50... Rg5 {[%clk 0:00:55.2]} 51. Nc2+
{[%clk 0:00:12.2]} 51... Ka4 {[%clk 0:00:55.3]} 52. Qb4# {[%clk 0:00:12.3]} 1-0

[Event "Early-Titled-Tuesday-Blitz-May-07-2024"]
[Site "Chess.com"]
[Date "2024.05.07"]
[Round "2"]
[White "Goryachkina"]
[Black "Naruto75_3"]
[Result "0-1"]
[WhiteElo "2686"]
[BlackElo "2415"]
[TimeControl "180+1"]
[EndTime "8:19:44 PDT"]
[Termination "Naruto75_3 won on time"]

1. e4 {[%clk 0:02:59.8]} 1... c5 {[%clk 0:02:58.5]} 2. Nf3 {[%clk 0:02:59.7]}
2... d6 {[%clk 0:02:59.1]} 3. d4 {[%clk 0:02:57]} 3... cxd4 {[%clk 0:03:00]} 4.
Nxd4 {[%clk 0:02:57.7]} 4... Nf6 {[%clk 0:03:00.1]} 5. Nc3 {[%clk 0:02:57.8]}
5... a6 {[%clk 0:02:59.3]} 6. Be2 {[%clk 0:02:54]} 6... e5 {[%clk 0:02:58.7]} 7.
Nb3 {[%clk 0:02:53.2]} 7... Be7 {[%clk 0:02:58.4]} 8. O-O {[%clk 0:02:53.1]}
8... O-O {[%clk 0:02:58]} 9. Be3 {[%clk 0:02:51.8]} 9... Be6 {[%clk 0:02:57]}
10. Re1 {[%clk 0:02:49.6]} 10... Nbd7 {[%clk 0:02:54.8]} 11. Qd3 {[%clk
0:02:41.6]} 11... Rc8 {[%clk 0:02:54.2]} 12. Nd5 {[%clk 0:02:31.6]} 12... Bxd5
{[%clk 0:02:48.7]} 13. exd5 {[%clk 0:02:31.7]} 13... b5 {[%clk 0:02:49.3]} 14.
a4 {[%clk 0:02:26.1]} 14... Nb6 {[%clk 0:02:33.7]} 15. axb5 {[%clk 0:02:01.2]}
15... axb5 {[%clk 0:02:32.1]} 16. Bxb6 {[%clk 0:01:22.3]} 16... Qxb6 {[%clk
0:02:28.6]} 17. c3 {[%clk 0:01:11.1]} 17... b4 {[%clk 0:02:15]} 18. c4 {[%clk
0:01:08.2]} 18... Nd7 {[%clk 0:02:10.2]} 19. Na5 {[%clk 0:00:42.1]} 19... Nb8
{[%clk 0:01:57.1]} 20. Bg4 {[%clk 0:00:39.2]} 20... Rc5 {[%clk 0:01:52.2]} 21.
Nb3 {[%clk 0:00:35.8]} 21... Rc7 {[%clk 0:01:51.9]} 22. g3 {[%clk 0:00:27.8]}
22... g6 {[%clk 0:01:48.3]} 23. h4 {[%clk 0:00:26.1]} 23... f5 {[%clk
0:01:43.9]} 24. Bh3 {[%clk 0:00:26.4]} 24... f4 {[%clk 0:01:43.4]} 25. Be6+
{[%clk 0:00:19.9]} 25... Kg7 {[%clk 0:01:42.4]} 26. Kg2 {[%clk 0:00:17.6]} 26...
fxg3 {[%clk 0:01:37.8]} 27. fxg3 {[%clk 0:00:16.9]} 27... Qf2+ {[%clk
0:01:35.9]} 28. Kh3 {[%clk 0:00:11.7]} 28... Rf3 {[%clk 0:01:35]} 29. Qxf3
{[%clk 0:00:11.1]} 29... Qxf3 {[%clk 0:01:34.3]} 30. Nd2 {[%clk 0:00:11.4]}
30... Qd3 {[%clk 0:01:13.5]} 31. Rad1 {[%clk 0:00:10.8]} 31... Nd7 {[%clk
0:01:03.4]} 32. Ne4 {[%clk 0:00:06.8]} 32... Qxc4 {[%clk 0:01:02.9]} 33. Rf1
{[%clk 0:00:04.8]} 33... Qxe4 {[%clk 0:00:57.2]} 34. Rf7+ {[%clk 0:00:04.4]}
34... Kh6 {[%clk 0:00:56.9]} 35. Rxe7 {[%clk 0:00:04.7]} 35... Qe2 {[%clk
0:00:54]} 36. Rg1 {[%clk 0:00:03.8]} 36... Rc2 {[%clk 0:00:46.9]} 0-1

[Event "Early-Titled-Tuesday-Blitz-May-07-2024"]
[Site "Chess.com"]
[Date "2024.05.07"]
[Round "2"]
[White "rhwr"]
[Black "betta2004"]
[Result "0-1"]
[WhiteElo "2302"]
[BlackElo "2522"]
[TimeControl "180+1"]
[EndTime "8:19:45 PDT"]
[Termination "betta2004 won by checkmate"]

1. e4 {[%clk 0:03:00.9]} 1... e5 {[%clk 0:02:56.7]} 2. Nf3 {[%clk 0:02:59.5]}
2... Nf6 {[%clk 0:02:57]} 3. Nc3 {[%clk 0:02:57.3]} 3... Bc5 {[%clk 0:02:56.8]}
4. Bc4 {[%clk 0:02:49.7]} 4... d6 {[%clk 0:02:55.8]} 5. O-O {[%clk 0:02:49]}
5... O-O {[%clk 0:02:55.8]} 6. d4 {[%clk 0:02:46.8]} 6... exd4 {[%clk 0:02:56]}
7. Nxd4 {[%clk 0:02:46.9]} 7... Bg4 {[%clk 0:02:55.7]} 8. f3 {[%clk 0:02:44.2]}
8... Be6 {[%clk 0:02:38.5]} 9. Bxe6 {[%clk 0:02:38.1]} 9... fxe6 {[%clk
0:02:39.4]} 10. Kh1 {[%clk 0:02:38.2]} 10... Qe7 {[%clk 0:02:34.8]} 11. a4
{[%clk 0:02:29.4]} 11... Nc6 {[%clk 0:02:34.7]} 12. Nb3 {[%clk 0:02:26.5]} 12...
Bb4 {[%clk 0:02:33.6]} 13. Bd2 {[%clk 0:02:23.2]} 13... Nh5 {[%clk 0:02:33.6]}
14. Qe1 {[%clk 0:02:20.9]} 14... Ne5 {[%clk 0:02:27]} 15. Nd5 {[%clk 0:01:39.4]}
15... exd5 {[%clk 0:02:26]} 16. Bxb4 {[%clk 0:01:39.8]} 16... d4 {[%clk
0:02:16.5]} 17. Bd2 {[%clk 0:01:14.6]} 17... c5 {[%clk 0:02:16.3]} 18. Nc1
{[%clk 0:01:11]} 18... Rf7 {[%clk 0:02:13.1]} 19. b3 {[%clk 0:01:08.4]} 19...
Raf8 {[%clk 0:02:13.2]} 20. Nd3 {[%clk 0:01:07.3]} 20... Kh8 {[%clk 0:02:11.8]}
21. Nxe5 {[%clk 0:01:06]} 21... dxe5 {[%clk 0:02:12.7]} 22. a5 {[%clk
0:01:04.1]} 22... g5 {[%clk 0:02:12.5]} 23. Qe2 {[%clk 0:01:01.7]} 23... Qf6
{[%clk 0:02:11.1]} 24. a6 {[%clk 0:01:00.4]} 24... Qh6 {[%clk 0:02:09.4]} 25.
Kg1 {[%clk 0:00:58.8]} 25... b6 {[%clk 0:02:07.6]} 26. b4 {[%clk 0:00:57.3]}
26... Nf4 {[%clk 0:02:02.5]} 27. Bxf4 {[%clk 0:00:56.3]} 27... gxf4 {[%clk
0:02:03.4]} 28. bxc5 {[%clk 0:00:56.2]} 28... bxc5 {[%clk 0:02:04]} 29. Rab1
{[%clk 0:00:53]} 29... Rg7 {[%clk 0:02:04.1]} 30. Rb7 {[%clk 0:00:52.6]} 30...
Rxb7 {[%clk 0:01:57]} 31. axb7 {[%clk 0:00:52.2]} 31... Qb6 {[%clk 0:01:57.7]}
32. Qc4 {[%clk 0:00:50]} 32... Qxb7 {[%clk 0:01:53.7]} 33. Qxc5 {[%clk
0:00:49.6]} 33... Qg7 {[%clk 0:01:54]} 34. Rf2 {[%clk 0:00:41.8]} 34... Rb8
{[%clk 0:01:52.8]} 35. Rf1 {[%clk 0:00:36.1]} 35... h5 {[%clk 0:01:52.5]} 36. c3
{[%clk 0:00:29]} 36... d3 {[%clk 0:01:41.4]} 37. Rd1 {[%clk 0:00:27.8]} 37...
Rd8 {[%clk 0:01:25.9]} 38. Qa5 {[%clk 0:00:22.8]} 38... Rd7 {[%clk 0:01:14.5]}
39. c4 {[%clk 0:00:22.2]} 39... Kh7 {[%clk 0:01:13.5]} 40. c5 {[%clk 0:00:21.8]}
40... Qe7 {[%clk 0:00:52]} 41. c6 {[%clk 0:00:20.5]} 41... Rc7 {[%clk
0:00:48.9]} 42. Qd5 {[%clk 0:00:16]} 42... Qf6 {[%clk 0:00:39.2]} 43. Rxd3
{[%clk 0:00:15.8]} 43... Rxc6 {[%clk 0:00:39.5]} 44. Qd7+ {[%clk 0:00:15.9]}
44... Kh6 {[%clk 0:00:38.8]} 45. Qxa7 {[%clk 0:00:14.9]} 45... Rc1+ {[%clk
0:00:38.9]} 46. Kf2 {[%clk 0:00:15]} 46... Qh4+ {[%clk 0:00:39.4]} 47. g3 {[%clk
0:00:11.4]} 47... Qxh2# {[%clk 0:00:39.5]} 0-1

[Event "Early-Titled-Tuesday-Blitz-May-07-2024"]
[Site "Chess.com"]
[Date "2024.05.07"]
[Round "2"]
[White "TimGrutter03"]
[Black "FaustinoOro"]
[Result "0-1"]
[WhiteElo "2602"]
[BlackElo "2887"]
[TimeControl "180+1"]
[EndTime "8:19:46 PDT"]
[Termination "FaustinoOro won on time"]

1. c4 {[%clk 0:03:00.9]} 1... Nf6 {[%clk 0:02:58.6]} 2. Nc3 {[%clk 0:03:00]}
2... e5 {[%clk 0:02:58.9]} 3. g3 {[%clk 0:02:59.5]} 3... Bb4 {[%clk 0:02:58.6]}
4. Bg2 {[%clk 0:02:59.4]} 4... O-O {[%clk 0:02:58.8]} 5. Qc2 {[%clk 0:02:57]}
5... Nc6 {[%clk 0:02:57.8]} 6. e3 {[%clk 0:02:55.2]} 6... d6 {[%clk 0:02:53.1]}
7. Nge2 {[%clk 0:02:54.2]} 7... a5 {[%clk 0:02:48.4]} 8. a3 {[%clk 0:02:53.4]}
8... Bc5 {[%clk 0:02:48.5]} 9. O-O {[%clk 0:02:51.4]} 9... Bb6 {[%clk
0:02:46.3]} 10. Rb1 {[%clk 0:02:48.1]} 10... Be6 {[%clk 0:02:39.8]} 11. d3
{[%clk 0:02:47]} 11... d5 {[%clk 0:02:33.5]} 12. cxd5 {[%clk 0:02:45.9]} 12...
Nxd5 {[%clk 0:02:33.7]} 13. b3 {[%clk 0:02:40.6]} 13... Qd7 {[%clk 0:02:24.5]}
14. Bb2 {[%clk 0:02:38.1]} 14... Rad8 {[%clk 0:02:18.4]} 15. Rfd1 {[%clk
0:02:36.8]} 15... Rfe8 {[%clk 0:02:12.4]} 16. Rbc1 {[%clk 0:02:31.8]} 16... f6
{[%clk 0:02:08.2]} 17. Na4 {[%clk 0:02:25.8]} 17... Qf7 {[%clk 0:02:07.3]} 18.
Nc5 {[%clk 0:01:31.7]} 18... Bxc5 {[%clk 0:02:05.4]} 19. Qxc5 {[%clk 0:01:31.8]}
19... Nb6 {[%clk 0:02:06.1]} 20. Bxc6 {[%clk 0:01:10.8]} 20... bxc6 {[%clk
0:02:06.4]} 21. Qxc6 {[%clk 0:00:56.3]} 21... Bxb3 {[%clk 0:02:05]} 22. Re1
{[%clk 0:00:55.4]} 22... Re7 {[%clk 0:01:45.1]} 23. d4 {[%clk 0:00:47.9]} 23...
Bd5 {[%clk 0:01:14.9]} 24. Qc2 {[%clk 0:00:47.3]} 24... exd4 {[%clk 0:01:10.3]}
25. Bxd4 {[%clk 0:00:45.2]} 25... Nc8 {[%clk 0:00:58.1]} 26. Nf4 {[%clk
0:00:41.9]} 26... Bb3 {[%clk 0:00:48.1]} 27. Qc3 {[%clk 0:00:37]} 27... a4
{[%clk 0:00:48]} 28. Qa5 {[%clk 0:00:27]} 28... Nd6 {[%clk 0:00:42.1]} 29. Bc5
{[%clk 0:00:24.7]} 29... Re5 {[%clk 0:00:41.4]} 30. Qb4 {[%clk 0:00:19.8]} 30...
Ne4 {[%clk 0:00:39.6]} 31. Bd4 {[%clk 0:00:16.6]} 31... Ree8 {[%clk 0:00:34.6]}
32. Qb7 {[%clk 0:00:11.4]} 32... Rd7 {[%clk 0:00:27.6]} 33. f3 {[%clk
0:00:05.1]} 33... Ng5 {[%clk 0:00:22.4]} 34. Kg2 {[%clk 0:00:02.7]} 34... c5
{[%clk 0:00:20.2]} 0-1

[Event "Early-Titled-Tuesday-Blitz-May-07-2024"]
[Site "Chess.com"]
[Date "2024.05.07"]
[Round "2"]
[White "unbreakablepawn35"]
[Black "Boundless_Strike"]
[Result "0-1"]
[WhiteElo "2390"]
[BlackElo "2659"]
[TimeControl "180+1"]
[EndTime "8:19:46 PDT"]
[Termination "Boundless_Strike won by resignation"]

1. d4 {[%clk 0:03:00.9]} 1... e5 {[%clk 0:02:59.3]} 2. dxe5 {[%clk 0:03:00.2]}
2... d6 {[%clk 0:02:59.4]} 3. Nf3 {[%clk 0:02:52.4]} 3... Bg4 {[%clk 0:02:58.8]}
4. Qd4 {[%clk 0:02:22.8]} 4... Qd7 {[%clk 0:01:42.2]} 5. exd6 {[%clk 0:02:12.5]}
5... Bxd6 {[%clk 0:01:25.3]} 6. Ne5 {[%clk 0:02:04.9]} 6... Bxe5 {[%clk
0:01:09]} 7. Qxe5+ {[%clk 0:02:05.8]} 7... Ne7 {[%clk 0:01:09.2]} 8. Nc3 {[%clk
0:01:57.2]} 8... Nc6 {[%clk 0:01:07.8]} 9. Qb5 {[%clk 0:01:29.5]} 9... O-O-O
{[%clk 0:01:03.5]} 10. Be3 {[%clk 0:01:26.2]} 10... a6 {[%clk 0:00:27.9]} 11.
Qa4 {[%clk 0:01:17.6]} 11... h5 {[%clk 0:00:15.7]} 12. Rd1 {[%clk 0:01:12.2]}
12... Qe6 {[%clk 0:00:15.1]} 13. Bc5 {[%clk 0:01:00.5]} 13... Ng6 {[%clk
0:00:06.2]} 14. h3 {[%clk 0:00:36.5]} 14... Qe5 {[%clk 0:00:06.7]} 15. hxg4
{[%clk 0:00:31.5]} 15... Qxc5 {[%clk 0:00:06.7]} 16. gxh5 {[%clk 0:00:31.2]}
16... Nge5 {[%clk 0:00:05.1]} 17. e3 {[%clk 0:00:29]} 17... Rxd1+ {[%clk
0:00:05.4]} 18. Nxd1 {[%clk 0:00:28.4]} 18... Rd8 {[%clk 0:00:04]} 19. Be2
{[%clk 0:00:27.3]} 19... Qd6 {[%clk 0:00:03.1]} 20. O-O {[%clk 0:00:22.3]} 20...
g6 {[%clk 0:00:03.5]} 21. h6 {[%clk 0:00:19]} 21... Rh8 {[%clk 0:00:04.1]} 22.
Qf4 {[%clk 0:00:19.2]} 22... f5 {[%clk 0:00:04.5]} 23. Nc3 {[%clk 0:00:17.9]}
23... Qf6 {[%clk 0:00:04.7]} 24. Rd1 {[%clk 0:00:17.9]} 24... g5 {[%clk
0:00:05]} 25. Qa4 {[%clk 0:00:16.4]} 25... Qxh6 {[%clk 0:00:05.2]} 26. f3 {[%clk
0:00:15.5]} 26... g4 {[%clk 0:00:04]} 27. f4 {[%clk 0:00:15.4]} 27... g3 {[%clk
0:00:04.2]} 28. Bh5 {[%clk 0:00:11.3]} 28... Qxh5 {[%clk 0:00:04.3]} 29. Kf1
{[%clk 0:00:11.8]} 29... Qh1+ {[%clk 0:00:04.2]} 30. Ke2 {[%clk 0:00:11.8]}
30... Qxg2+ {[%clk 0:00:04.9]} 0-1

[Event "Early-Titled-Tuesday-Blitz-May-07-2024"]
[Site "Chess.com"]
[Date "2024.05.07"]
[Round "2"]
[White "Perecke"]
[Black "schachlana"]
[Result "1-0"]
[WhiteElo "2547"]
[BlackElo "2350"]
[TimeControl "180+1"]
[EndTime "8:19:46 PDT"]
[Termination "Perecke won by checkmate"]

1. e4 {[%clk 0:03:00.9]} 1... c5 {[%clk 0:02:59.6]} 2. Nf3 {[%clk 0:03:01]} 2...
a6 {[%clk 0:02:59]} 3. c4 {[%clk 0:03:00.4]} 3... Nc6 {[%clk 0:02:57]} 4. d4
{[%clk 0:02:58.9]} 4... cxd4 {[%clk 0:02:57.9]} 5. Nxd4 {[%clk 0:02:59.6]} 5...
e5 {[%clk 0:02:55.5]} 6. Nf5 {[%clk 0:02:58.7]} 6... d5 {[%clk 0:02:52.2]} 7.
cxd5 {[%clk 0:02:53.6]} 7... Bxf5 {[%clk 0:02:52.3]} 8. exf5 {[%clk 0:02:54.5]}
8... Nd4 {[%clk 0:02:52.1]} 9. Nc3 {[%clk 0:02:51]} 9... Nf6 {[%clk 0:02:47.3]}
10. Bg5 {[%clk 0:02:38.8]} 10... h6 {[%clk 0:02:31.9]} 11. Bxf6 {[%clk
0:02:33.6]} 11... Qxf6 {[%clk 0:02:32.8]} 12. Qa4+ {[%clk 0:02:32.7]} 12... Kd8
{[%clk 0:02:13.7]} 13. Bd3 {[%clk 0:02:30.9]} 13... Bd6 {[%clk 0:02:05.3]} 14.
O-O {[%clk 0:02:26.1]} 14... Ke7 {[%clk 0:01:28.2]} 15. Ne4 {[%clk 0:02:24]}
15... Qh4 {[%clk 0:01:25.9]} 16. f4 {[%clk 0:02:00.5]} 16... b5 {[%clk 0:01:10]}
17. Qa5 {[%clk 0:01:59.4]} 17... exf4 {[%clk 0:01:02]} 18. Nxd6 {[%clk
0:01:16.5]} 18... Kxd6 {[%clk 0:01:01.4]} 19. Qb6+ {[%clk 0:01:13.8]} 19... Kxd5
{[%clk 0:01:01.4]} 20. Rad1 {[%clk 0:00:56.3]} 20... Rad8 {[%clk 0:00:44.8]} 21.
Rfe1 {[%clk 0:00:19.9]} 21... f3 {[%clk 0:00:13.8]} 22. Be4+ {[%clk 0:00:08.9]}
22... Ke5 {[%clk 0:00:14.2]} 23. Bc2+ {[%clk 0:00:05]} 23... Ne2+ {[%clk
0:00:10.3]} 24. Kh1 {[%clk 0:00:03.2]} 24... fxg2+ {[%clk 0:00:04.5]} 25. Kxg2
{[%clk 0:00:04.1]} 25... Qg4+ {[%clk 0:00:04.2]} 26. Kf2 {[%clk 0:00:04.3]}
26... Qf4+ {[%clk 0:00:02.8]} 27. Kxe2 {[%clk 0:00:04.1]} 27... Qg4+ {[%clk
0:00:03.4]} 28. Kf2+ {[%clk 0:00:04.1]} 28... Kf4 {[%clk 0:00:03.1]} 29. Qe3#
{[%clk 0:00:04.2]} 1-0